fUSD/lending_fUSD_20250503
["ID","MTS","AMOUNT","RATE_DAILY","PERIOD"]
[359750122,1746298242869,-494.43,0.00019605,2]
[359750124,1746298242879,-450.0,0.00019605,2]
[359750125,1746298242888,-450.0,0.00019605,2]
[359750126,1746298242898,-450.0,0.00019605,2]
[359750127,1746298242907,-450.0,0.00019605,2]
[359750128,1746298242916,-532.31,0.00019605,2]
[359750129,1746298242925,-450.0,0.00019605,2]
[359750130,1746298242935,-450.0,0.00019605,2]
[359750131,1746298242944,-578.99426522,0.00019605,2]
[359750132,1746298242953,-450.0,0.00019605,2]
[359750133,1746298242963,-450.0,0.00019605,2]
[359750134,1746298242972,-450.0,0.00019605,2]
[359750135,1746298242982,-923.12,0.00019605,2]
[359750137,1746298242992,-450.0,0.00019605,2]
[359750138,1746298243001,-450.0,0.00019605,2]
[359750140,1746298243011,-620.91,0.00019605,2]
[359750142,1746298243019,-450.0,0.00019605,2]
[359750143,1746298243029,-450.0,0.00019605,2]
[359750144,1746298243038,-943.06,0.00019605,2]
[359750145,1746298243047,-450.0,0.00019605,2]
[359750146,1746298243056,-450.0,0.00019605,2]
[359750147,1746298243064,-450.0,0.00019605,2]
[359750148,1746298243073,-450.0,0.00019605,2]
[359750149,1746298243083,-450.0,0.00019605,2]
[359750150,1746298243094,-450.0,0.00019605,2]
[359750151,1746298243103,-666.55,0.00019605,2]
[359750152,1746298243113,-450.0,0.00019605,2]
[359750153,1746298243122,-450.0,0.00019605,2]
[359750154,1746298243131,-450.0,0.00019605,2]
[359750155,1746298243141,-527.59,0.00019605,2]
[359750156,1746298243150,-635.74,0.00019605,2]
[359750157,1746298243159,-450.0,0.00019605,2]
[359750158,1746298243168,-450.0,0.00019605,2]
[359750159,1746298243177,-450.0,0.00019605,2]
[359750160,1746298243186,-450.0,0.00019605,2]
[359750161,1746298243195,-450.0,0.00019605,2]
[359750162,1746298243204,-450.0,0.00019605,2]
[359750163,1746298243213,-450.0,0.00019605,2]
[359750164,1746298243222,-450.0,0.00019605,2]
[359750165,1746298243231,-450.0,0.00019605,2]
[359750167,1746298243240,-580.17,0.00019605,2]
[359750168,1746298243249,-450.0,0.00019605,2]
[359750169,1746298243259,-450.0,0.00019605,2]
[359750170,1746298243268,-1534.01,0.00019605,2]
[359750171,1746298243277,-450.0,0.00019605,2]
[359750172,1746298243287,-450.0,0.00019605,2]
[359750173,1746298243296,-574.2,0.00019605,2]
[359750174,1746298243305,-450.0,0.00019605,2]
[359750175,1746298243315,-450.0,0.00019605,2]
[359750176,1746298243326,-728.83,0.00019605,2]
[359750177,1746298243335,-450.0,0.00019605,2]
[359750178,1746298243344,-486.65,0.00019605,2]
[359750179,1746298243353,-602.16,0.00019605,2]
[359750180,1746298243363,-450.0,0.00019605,2]
[359750181,1746298243372,-450.0,0.00019605,2]
[359750182,1746298243381,-450.0,0.00019605,2]
[359750183,1746298243391,-537.37,0.00019605,2]
[359750184,1746298243400,-936.96,0.00019605,2]
[359750185,1746298243409,-450.0,0.00019605,2]
[359750186,1746298243418,-806.33,0.00019605,2]
[359750187,1746298243427,-450.0,0.00019605,2]
[359750188,1746298243436,-596.63,0.00019605,2]
[359750189,1746298243446,-450.0,0.00019605,2]
[359750190,1746298243455,-1206.38,0.00019605,2]
[359750191,1746298243463,-450.0,0.00019605,2]
[359750192,1746298243473,-694.81,0.00019605,2]
[359750193,1746298243482,-511.52,0.00019605,2]
[359750194,1746298243491,-497.86,0.00019605,2]
[359750195,1746298243500,-753.45,0.00019605,2]
[359750197,1746298243510,-450.0,0.00019605,2]
[359750198,1746298243519,-450.0,0.00019605,2]
[359750199,1746298243528,-450.0,0.00019605,2]
[359750200,1746298243537,-450.0,0.00019605,2]
[359750201,1746298243546,-1312.86,0.00019605,2]
[359750202,1746298243555,-450.0,0.00019605,2]
[359750203,1746298243564,-450.0,0.00019605,2]
[359750204,1746298243574,-563.41,0.00019605,2]
[359750205,1746298243583,-450.0,0.00019605,2]
[359750206,1746298243592,-173.39625193,0.00019605,2]
[359750207,1746298243601,-450.0,0.00019605,2]
[359750208,1746298243610,-475.36,0.00019605,2]
[359750209,1746298243621,-450.0,0.00019605,2]
[359750210,1746298243631,-450.0,0.00019605,2]
[359750211,1746298243640,-521.16,0.00019605,2]
[359750212,1746298243649,-450.0,0.00019605,2]
[359750213,1746298243659,-450.0,0.00019605,2]
[359750214,1746298243668,-2141.75,0.00019605,2]
[359750216,1746298243677,-450.0,0.00019605,2]
[359750217,1746298243687,-450.0,0.00019605,2]
[359750218,1746298243696,-450.0,0.00019605,2]
[359750219,1746298243706,-450.0,0.00019605,2]
[359750220,1746298243715,-450.0,0.00019605,2]
[359750221,1746298243724,-491.01,0.00019605,2]
[359750222,1746298243734,-1052.06,0.00019605,2]
[359750223,1746298243743,-2183.04,0.00019605,2]
[359750224,1746298243752,-450.0,0.00019605,2]
[359750225,1746298243762,-952.66,0.00019605,2]
[359750226,1746298243771,-586.92682122,0.00019605,2]
[359750227,1746298243785,-412.52998212,0.00019605,2]
[359750228,1746298243794,-450.0,0.00019605,2]
[359750229,1746298243803,-1114.3,0.00019605,2]
[359750230,1746298243812,-2159.95,0.00019605,2]
[359750231,1746298243823,-450.0,0.00019605,2]
[359750232,1746298243832,-486.86,0.00019605,2]
[359750233,1746298243842,-450.0,0.00019605,2]
[359750234,1746298243852,-450.0,0.00019605,2]
[359750235,1746298243863,-440.0,0.00019605,2]
[359750236,1746298243872,-450.0,0.00019605,2]
[359750237,1746298243882,-472.83333276,0.00019605,2]
[359750238,1746298243891,-450.0,0.00019605,2]
[359750239,1746298243901,-450.0,0.00019605,2]
[359750240,1746298243910,-450.0,0.00019605,2]
[359750241,1746298243920,-574.62888116,0.00019605,2]
[359750242,1746298243930,-450.0,0.00019605,2]
[359750243,1746298243940,-450.0,0.00019605,2]
[359750244,1746298243949,-450.0,0.00019605,2]
[359750245,1746298243958,-463.1561537,0.00019605,2]
[359750246,1746298243968,-290.0,0.00019605,2]
[359750247,1746298243977,-514.01220636,0.00019606,2]
[359750248,1746298243986,-500.0,0.00019606,2]
[359750249,1746298243995,-196.29970361,0.00019606,2]
[359750250,1746298244006,-450.0,0.00019606,2]
[359750251,1746298244015,-450.0,0.00019606,2]
[359750252,1746298244025,-150.0,0.00019611,2]
[359750253,1746298244034,-150.0,0.00019611,2]
[359750254,1746298244044,-500.0,0.00019611,2]
[359750255,1746298244053,-150.0,0.00019611,2]
[359750256,1746298244062,-150.0,0.00019611,2]
[359750257,1746298244072,-435.0,0.00019611,2]
[359750258,1746298244081,-150.0,0.00019611,2]
[359750259,1746298244090,-155.75221986,0.00019611,2]
[359750260,1746298244100,-500.0,0.00019611,2]
[359750261,1746298244109,-152.6145878,0.00019611,2]
[359750262,1746298244118,-152.14871149,0.00019611,2]
[359750263,1746298244127,-150.0,0.00019611,2]
[359750264,1746298244135,-150.50631763,0.00019611,2]
[359750265,1746298244144,-500.0,0.00019611,2]
[359750266,1746298244151,-460.0,0.00019611,2]
[359750267,1746298244160,-150.0,0.00019611,2]
[359750268,1746298244169,-500.0,0.00019611,2]
[359750269,1746298244178,-150.0,0.00019611,2]
[359750270,1746298244187,-500.0,0.00019611,2]
[359750271,1746298244196,-150.0,0.00019611,2]
[359750272,1746298244205,-282.75493719,0.00019616,2]
[359750273,1746298244214,-13490.86330643,0.00019627,2]
[359750274,1746298244223,-500.0,0.00019635,2]
[359750275,1746298244233,-300.54037433,0.00019635,2]
[359750276,1746298244242,-4807.3011263,0.00019635,2]
[359750277,1746298244252,-999.0,0.00019671,2]
[359750278,1746298244261,-500.0,0.00019673,2]
[359750279,1746298244271,-501.02155493,0.00019673,2]
[359750280,1746298244280,-500.0,0.00019673,2]
[359750281,1746298244289,-153.57106754,0.00019673,2]
[359750282,1746298244298,-264.39475146,0.00019673,2]
[359750283,1746298244307,-500.0,0.00019673,2]
[359750284,1746298244317,-500.0,0.00019673,2]
[359750285,1746298244326,-500.0,0.00019673,2]
[359750286,1746298244335,-500.0,0.00019673,2]
[359750287,1746298244345,-500.0,0.00019673,2]
[359750288,1746298244354,-500.0,0.00019673,2]
[359750289,1746298244363,-400.96451374,0.00019673,2]
[359750290,1746298244372,-500.0,0.00019673,2]
[359750291,1746298244382,-13490.86330643,0.00019673,2]
[359750292,1746298244391,-282.75493719,0.00019673,2]
[359750293,1746298244400,-300.54037433,0.00019679,2]
[359750294,1746298244410,-4807.3011263,0.00019679,2]
[359750295,1746298244419,-1000.0,0.000197,2]
[359750296,1746298244428,-7342.01,0.000197,2]
[359750297,1746298244437,-13490.86330643,0.00019718,2]
[359750298,1746298244446,-300.54037433,0.00019724,2]
[359750299,1746298244456,-4807.3011263,0.00019724,2]
[359750300,1746298244465,-282.75493719,0.0001973,2]
[359750301,1746298244474,-150.0,0.00019739,2]
[359750302,1746298244484,-799.25930071,0.00019742,2]
[359750303,1746298244494,-500.0,0.00019753,2]
[359750304,1746298244503,-150.0,0.00019763,2]
[359750305,1746298244512,-13490.86330643,0.00019764,2]
[359750306,1746298244521,-150.0,0.00019764,2]
[359750307,1746298244531,-150.0,0.00019766,2]
[359750308,1746298244540,-300.54037433,0.00019768,2]
[359750309,1746298244549,-4807.3011263,0.00019768,2]
[359750310,1746298244559,-362.96667978,0.00019776,2]
[359750311,1746298244569,-158.08935037,0.00019776,2]
[359750312,1746298244578,-442.9641645,0.00019777,2]
[359750313,1746298244587,-150.0,0.00019782,2]
[359750314,1746298244595,-150.0,0.00019785,2]
[359750315,1746298244603,-282.75493719,0.00019787,2]
[359750316,1746298244612,-442.96416449,0.00019798,2]
[359750317,1746298244621,-2448.6476407,0.00019799,2]
[359750318,1746298244630,-1000.0,0.000198,2]
[359750319,1746298244640,-362.96667977,0.00019807,2]
[359750320,1746298244649,-13490.86330643,0.00019809,2]
[359750321,1746298244658,-300.54037433,0.00019812,2]
[359750322,1746298244668,-4807.3011263,0.00019812,2]
[359750323,1746298244678,-442.96416449,0.00019818,2]
[359750324,1746298244689,-150.0,0.00019824,2]
[359750325,1746298244699,-150.0,0.00019825,2]
[359750326,1746298244709,-150.0,0.00019835,2]
[359750327,1746298244720,-362.96667977,0.00019838,2]
[359750328,1746298244729,-442.96416449,0.00019839,2]
[359750329,1746298244739,-200.0,0.00019839,2]
[359750330,1746298244748,-500.0,0.0001984,2]
[359750331,1746298244758,-2000.0,0.0001984,2]
[359750332,1746298244768,-500.0,0.0001984,2]
[359750333,1746298244782,-200.0,0.0001984,2]
[359750334,1746298244792,-282.75493719,0.00019843,2]
[359750335,1746298244802,-13490.86330643,0.00019855,2]
[359750336,1746298244812,-300.54037433,0.00019856,2]
[359750337,1746298244822,-4807.3011263,0.00019856,2]
[359750338,1746298244832,-150.0,0.00019857,2]
[359750339,1746298244841,-442.96416449,0.00019859,2]
[359750340,1746298244851,-1219.40496452,0.00019867,2]
[359750341,1746298244861,-362.96667977,0.00019869,2]
[359750342,1746298244872,-150.0,0.0001987,2]
[359750343,1746298244881,-500.0,0.00019873,2]
[359750344,1746298244891,-500.0,0.00019873,2]
[359750345,1746298244899,-507.79745625,0.00019873,2]
[359750346,1746298244907,-503.64954939,0.00019873,2]
[359750347,1746298244916,-500.0,0.00019873,2]
[359750348,1746298244925,-500.0,0.00019873,2]
[359750349,1746298244934,-500.68481339,0.00019873,2]
[359750350,1746298244944,-500.0,0.00019873,2]
[359750351,1746298244954,-209.60510291,0.00019873,2]
[359750352,1746298244963,-500.0,0.00019873,2]
[359750353,1746298244973,-500.0,0.00019873,2]
[359750354,1746298244982,-500.0,0.00019873,2]
[359750355,1746298244992,-500.0,0.00019873,2]
[359750356,1746298245002,-500.0,0.00019873,2]
[359750357,1746298245012,-500.0,0.00019873,2]
[359750358,1746298245022,-150.0,0.00019874,2]
[359750359,1746298245031,-586.08767055,0.00019875,2]
[359750360,1746298245040,-450.0,0.00019875,2]
[359750361,1746298245051,-450.0,0.00019875,2]
[359750362,1746298245063,-450.0,0.00019875,2]
[359750363,1746298245075,-450.0,0.00019875,2]
[359750364,1746298245085,-458.35,0.00019875,2]
[359750365,1746298245094,-450.56745622,0.00019875,2]
[359750366,1746298245103,-438.32,0.00019875,2]
[359750367,1746298245112,-628.54,0.00019875,2]
[359750368,1746298245122,-450.0,0.00019875,2]
[359750369,1746298245132,-450.0,0.00019875,2]
[359750370,1746298245340,-450.0,0.00019875,2]
[359750371,1746298245351,-450.0,0.00019875,2]
[359750372,1746298245361,-450.0,0.00019875,2]
[359750373,1746298245371,-4716.63,0.00019875,2]
[359750374,1746298245381,-450.0,0.00019875,2]
[359750375,1746298245391,-450.0,0.00019875,2]
[359750376,1746298245402,-450.0,0.00019875,2]
[359750377,1746298245412,-452.09724191,0.00019875,2]
[359750378,1746298245422,-450.0,0.00019876,2]
[359750379,1746298245432,-450.0,0.00019876,2]
[359750380,1746298245441,-450.0,0.00019876,2]
[359750381,1746298245451,-450.0,0.00019876,2]
[359750382,1746298245461,-450.0,0.00019876,2]
[359750383,1746298245471,-450.0,0.00019876,2]
[359750384,1746298245480,-450.0,0.00019876,2]
[359750385,1746298245490,-450.0,0.00019876,2]
[359750386,1746298245499,-450.0,0.00019876,2]
[359750387,1746298245508,-1164.11,0.00019876,2]
[359750388,1746298245517,-450.0,0.00019876,2]
[359750389,1746298245526,-450.0,0.00019876,2]
[359750390,1746298245536,-450.0,0.00019876,2]
[359750391,1746298245545,-450.0,0.00019876,2]
[359750392,1746298245554,-450.0,0.00019876,2]
[359750393,1746298245563,-667.63,0.00019876,2]
[359750394,1746298245573,-507.9,0.00019876,2]
[359750395,1746298245584,-450.0,0.00019876,2]
[359750396,1746298245595,-450.0,0.00019876,2]
[359750397,1746298245604,-1206.63,0.00019876,2]
[359750398,1746298245616,-744.17,0.00019876,2]
[359750399,1746298245625,-500.0,0.00019876,2]
[359750400,1746298245635,-395.39490778,0.00019876,2]
[359750401,1746298245644,-450.0,0.00019876,2]
[359750402,1746298245654,-450.0,0.00019876,2]
[359750403,1746298245663,-3927.81,0.00019876,2]
[359750404,1746298245672,-450.0,0.00019876,2]
[359750405,1746298245682,-633.26,0.00019876,2]
[359750406,1746298245691,-450.0,0.00019876,2]
[359750407,1746298245702,-450.0,0.00019876,2]
[359750408,1746298245712,-1141.32,0.00019876,2]
[359750409,1746298245722,-450.0,0.00019876,2]
[359750410,1746298245731,-450.0,0.00019876,2]
[359750411,1746298245741,-370.5392224,0.00019876,2]
[359750412,1746298245750,-450.0,0.00019876,2]
[359750413,1746298245759,-1433.26,0.00019876,2]
[359750414,1746298245768,-450.0,0.00019876,2]
[359750415,1746298245778,-450.0,0.00019876,2]
[359750416,1746298245788,-578.1,0.00019876,2]
[359750417,1746298245798,-450.0,0.00019876,2]
[359750418,1746298245807,-450.0,0.00019876,2]
[359750419,1746298245816,-450.0,0.00019876,2]
[359750420,1746298245827,-450.0,0.00019876,2]
[359750421,1746298245837,-70855.47337084,0.00019876,2]
[359750422,1746298245967,-500.0,0.00019603,2]
[359750423,1746298245976,-31626.00662916,0.00019876,2]
[359750424,1746298245985,-528.85,0.00019876,2]
[359750425,1746298245995,-450.0,0.00019876,2]
[359750426,1746298246004,-681.59,0.00019876,2]
[359750427,1746298246013,-450.0,0.00019876,2]
[359750428,1746298246023,-450.0,0.00019876,2]
[359750429,1746298246032,-610.54,0.00019876,2]
[359750430,1746298246041,-528.12811078,0.00019876,2]
[359750431,1746298246051,-450.0,0.00019876,2]
[359750432,1746298246060,-450.0,0.00019876,2]
[359750433,1746298246070,-880.71,0.00019876,2]
[359750434,1746298246079,-450.0,0.00019876,2]
[359750435,1746298246088,-450.0,0.00019876,2]
[359750436,1746298246098,-450.0,0.00019876,2]
[359750437,1746298246107,-4226.8,0.00019876,2]
[359750438,1746298246116,-450.0,0.00019877,2]
[359750439,1746298246126,-450.0,0.00019877,2]
[359750440,1746298246136,-450.0,0.00019877,2]
[359750441,1746298246146,-450.0,0.00019877,2]
[359750442,1746298246155,-450.0,0.00019877,2]
[359750443,1746298246165,-630.44,0.00019877,2]
[359750444,1746298246174,-450.0,0.00019877,2]
[359750445,1746298246183,-450.0,0.00019877,2]
[359750446,1746298246193,-450.0,0.00019877,2]
[359750447,1746298246203,-450.0,0.00019877,2]
[359750448,1746298246212,-450.0,0.00019877,2]
[359750449,1746298246222,-450.0,0.00019877,2]
[359750450,1746298246231,-397.63529192,0.00019877,2]
[359750451,1746298246241,-450.0,0.00019877,2]
[359750452,1746298246252,-450.0,0.00019877,2]
[359750453,1746298246262,-450.0,0.00019877,2]
[359750454,1746298246271,-450.0,0.00019877,2]
[359750455,1746298246282,-450.0,0.00019877,2]
[359750456,1746298246292,-450.0,0.00019877,2]
[359750457,1746298246301,-450.0,0.00019877,2]
[359750458,1746298246312,-911.55,0.00019877,2]
[359750459,1746298246323,-669.35,0.00019877,2]
[359750460,1746298246332,-494.81,0.00019877,2]
[359750461,1746298246342,-450.0,0.00019877,2]
[359750462,1746298246352,-450.0,0.00019877,2]
[359750463,1746298246362,-450.0,0.00019877,2]
[359750464,1746298246372,-450.0,0.00019877,2]
[359750465,1746298246382,-450.0,0.00019877,2]
[359750466,1746298246392,-450.0,0.00019877,2]
[359750467,1746298246402,-450.0,0.00019877,2]
[359750468,1746298246411,-450.0,0.00019877,2]
[359750469,1746298246421,-450.0,0.00019877,2]
[359750470,1746298246430,-450.0,0.00019877,2]
[359750471,1746298246439,-450.0,0.00019877,2]
[359750472,1746298246449,-450.0,0.00019877,2]
[359750473,1746298246459,-450.0,0.00019877,2]
[359750474,1746298246468,-450.0,0.00019877,2]
[359750475,1746298246478,-450.0,0.00019877,2]
[359750476,1746298246488,-550.1,0.00019877,2]
[359750477,1746298246497,-591.55,0.00019877,2]
[359750478,1746298246507,-489.36235802,0.00019877,2]
[359750479,1746298246517,-450.0,0.00019877,2]
[359750480,1746298246527,-503.83,0.00019877,2]
[359750481,1746298246536,-450.0,0.00019877,2]
[359750482,1746298246546,-957.28,0.00019877,2]
[359750483,1746298246556,-3754.94,0.00019877,2]
[359750485,1746298246565,-450.0,0.00019877,2]
[359750487,1746298246575,-541.83,0.00019877,2]
[359750488,1746298246584,-450.0,0.00019877,2]
[359750489,1746298246594,-450.0,0.00019877,2]
[359750490,1746298246605,-450.0,0.00019877,2]
[359750491,1746298246615,-450.0,0.00019877,2]
[359750492,1746298246624,-450.0,0.00019877,2]
[359750493,1746298246634,-654.76,0.00019877,2]
[359750494,1746298246643,-470.67,0.00019877,2]
[359750495,1746298246653,-450.0,0.00019877,2]
[359750496,1746298246663,-842.27,0.00019877,2]
[359750497,1746298246673,-450.0,0.00019877,2]
[359750498,1746298246683,-939.68,0.00019877,2]
[359750499,1746298246692,-455.27,0.00019877,2]
[359750500,1746298246702,-892.44,0.00019877,2]
[359750501,1746298246711,-530.27,0.00019877,2]
[359750502,1746298246720,-2062.91,0.00019877,2]
[359750503,1746298246730,-5579.4,0.00019877,2]
[359750504,1746298246741,-450.0,0.00019877,2]
[359750505,1746298246751,-450.0,0.00019877,2]
[359750506,1746298246761,-378.91010937,0.00019877,2]
[359750507,1746298246772,-459.8,0.00019877,2]
[359750508,1746298246786,-714.64,0.00019877,2]
[359750509,1746298246795,-7172.06,0.00019877,2]
[359750510,1746298246805,-500.0,0.00019877,2]
[359750511,1746298246815,-714.6,0.00019877,2]
[359750512,1746298246826,-450.0,0.00019877,2]
[359750513,1746298246836,-4809.01,0.00019877,2]
[359750514,1746298246846,-999.0,0.00019877,2]
[359750515,1746298246857,-1764.66,0.00019877,2]
[359750516,1746298246866,-745.06,0.00019877,2]
[359750517,1746298246876,-450.0,0.00019877,2]
[359750518,1746298246886,-450.0,0.00019877,2]
[359750519,1746298246897,-585.86,0.00019877,2]
[359750520,1746298246907,-4921.92,0.00019877,2]
[359750521,1746298246917,-450.0,0.00019877,2]
[359750522,1746298246927,-599.02,0.00019877,2]
[359750523,1746298246936,-544.82,0.00019877,2]
[359750524,1746298246946,-98660.44,0.00019877,2]
[359750525,1746298246956,-2718.32,0.00019877,2]
[359750526,1746298246965,-566.26,0.00019877,2]
[359750527,1746298246974,-1624.23,0.00019877,2]
[359750528,1746298246986,-673.26,0.00019877,2]
[359750529,1746298246995,-450.0,0.00019877,2]
[359750530,1746298247004,-988.05,0.00019877,2]
[359750531,1746298247015,-4486.29,0.00019877,2]
[359750532,1746298247024,-571.47,0.00019877,2]
[359750533,1746298247033,-450.0,0.00019877,2]
[359750534,1746298247043,-450.0,0.00019877,2]
[359750535,1746298247052,-10835.73,0.00019877,2]
[359750536,1746298247061,-450.0,0.00019877,2]
[359750537,1746298247071,-1525.53,0.00019877,2]
[359750538,1746298247080,-979.87,0.00019877,2]
[359750539,1746298247090,-450.0,0.00019877,2]
[359750540,1746298247099,-450.0,0.00019877,2]
[359750541,1746298247108,-13626.95,0.00019877,2]
[359750542,1746298247117,-733.04,0.00019877,2]
[359750543,1746298247126,-450.0,0.00019877,2]
[359750544,1746298247136,-450.0,0.00019877,2]
[359750545,1746298247145,-450.0,0.00019877,2]
[359750546,1746298247154,-1706.59,0.00019877,2]
[359750547,1746298247164,-450.0,0.00019877,2]
[359750548,1746298247173,-488.08,0.00019877,2]
[359750549,1746298247183,-450.0,0.00019877,2]
[359750550,1746298247193,-559.77,0.00019877,2]
[359750551,1746298247202,-455.72,0.00019877,2]
[359750552,1746298247211,-1347.78,0.00019877,2]
[359750553,1746298247221,-456.82,0.00019877,2]
[359750554,1746298247230,-756.24,0.00019877,2]
[359750555,1746298247239,-450.0,0.00019877,2]
[359750556,1746298247248,-661.48,0.00019877,2]
[359750557,1746298247257,-450.0,0.00019877,2]
[359750558,1746298247267,-450.0,0.00019877,2]
[359750559,1746298247276,-565.99,0.00019877,2]
[359750560,1746298247286,-450.0,0.00019877,2]
[359750561,1746298247295,-450.0,0.00019877,2]
[359750562,1746298247304,-940.85,0.00019877,2]
[359750563,1746298247314,-450.0,0.00019877,2]
[359750564,1746298247324,-450.0,0.00019877,2]
[359750565,1746298247333,-494.56,0.00019877,2]
[359750566,1746298247345,-454.55,0.00019877,2]
[359750567,1746298247354,-577.32,0.00019877,2]
[359750568,1746298247363,-478.25,0.00019877,2]
[359750569,1746298247373,-450.0,0.00019877,2]
[359750570,1746298247384,-450.0,0.00019877,2]
[359750571,1746298247393,-450.0,0.00019878,2]
[359750572,1746298247403,-514.05,0.00019878,2]
[359750573,1746298247412,-450.0,0.00019878,2]
[359750574,1746298247421,-557.94548119,0.00019878,2]
[359750575,1746298247431,-450.0,0.00019878,2]
[359750576,1746298247440,-450.0,0.00019878,2]
[359750577,1746298247449,-534.84,0.00019878,2]
[359750578,1746298247461,-450.0,0.00019878,2]
[359750579,1746298247470,-232.03197545,0.00019878,2]
[359750580,1746298247479,-450.0,0.00019878,2]
[359750581,1746298247488,-450.0,0.00019878,2]
[359750582,1746298247498,-630.52,0.00019878,2]
[359750583,1746298247507,-202.6477267,0.00019878,2]
[359750584,1746298247516,-698.19,0.00019878,2]
[359750585,1746298247526,-683.35,0.00019878,2]
[359750586,1746298247535,-450.0,0.00019878,2]
[359750587,1746298247545,-486.53,0.00019878,2]
[359750588,1746298247556,-931.58,0.00019878,2]
[359750589,1746298247565,-450.0,0.00019878,2]
[359750590,1746298247574,-450.0,0.00019878,2]
[359750591,1746298247584,-450.0,0.00019878,2]
[359750592,1746298247595,-450.0,0.00019878,2]
[359750593,1746298247604,-450.0,0.00019878,2]
[359750594,1746298247614,-450.0,0.00019878,2]
[359750595,1746298247624,-450.0,0.00019878,2]
[359750596,1746298247633,-450.0,0.00019878,2]
[359750597,1746298247642,-780.2,0.00019878,2]
[359750598,1746298247651,-639.56,0.00019878,2]
[359750599,1746298247661,-450.0,0.00019878,2]
[359750600,1746298247670,-450.0,0.00019878,2]
[359750601,1746298247682,-450.0,0.00019878,2]
[359750602,1746298247691,-623.91,0.00019878,2]
[359750603,1746298247700,-450.0,0.00019878,2]
[359750604,1746298247709,-562.14,0.00019878,2]
[359750605,1746298247719,-524.57,0.00019878,2]
[359750606,1746298247728,-450.0,0.00019879,2]
[359750607,1746298247738,-2877.55,0.00019879,2]
[359750608,1746298247747,-450.0,0.00019879,2]
[359750609,1746298247757,-450.0,0.00019879,2]
[359750610,1746298247766,-540.22183034,0.00019879,2]
[359750611,1746298247777,-552.35,0.00019879,2]
[359750612,1746298247789,-194.53251863,0.00019879,2]
[359750613,1746298247798,-450.0,0.00019879,2]
[359750614,1746298247808,-398.10757731,0.00019879,2]
[359750615,1746298247819,-450.0,0.00019879,2]
[359750616,1746298247828,-450.0,0.00019879,2]
[359750617,1746298247837,-450.0,0.00019879,2]
[359750618,1746298247847,-590.23,0.00019879,2]
[359750619,1746298247857,-450.0,0.00019879,2]
[359750620,1746298247866,-450.0,0.00019879,2]
[359750621,1746298247875,-450.0,0.00019879,2]
[359750622,1746298247885,-561.84,0.00019879,2]
[359750623,1746298247895,-450.0,0.00019879,2]
[359750624,1746298247907,-745.52,0.00019879,2]
[359750625,1746298247921,-450.0,0.00019879,2]
[359750626,1746298247936,-450.0,0.00019879,2]
[359750627,1746298247949,-450.0,0.00019879,2]
[359750628,1746298247961,-450.0,0.00019879,2]
[359750629,1746298247971,-450.0,0.00019879,2]
[359750630,1746298247984,-450.0,0.00019879,2]